bitfinex-derivatives/quotes_ETHF0:USTF0_20240829
["timestamp","ask_amount","ask_price","bid_price","bid_amount"]
[1724895290204,0.39644,2521.8,2521.4,0.40244108]
[1724895290402,0.3525,2521.7,2521.4,0.40244108]
[1724895290999,1.10415,2521.7,2521.4,0.40245108]
[1724895291299,0.3858,2521.6,2521.4,0.00595108]
[1724895291501,0.3858,2521.6,2521.4,0.40245108]
[1724895291805,0.3858,2521.6,2521.4,0.00595108]
[1724895292004,0.3858,2521.6,2520.7,3.2078]
[1724895292005,11.59462,2521.5,2520.7,3.2078]
[1724895292206,3.43,2521.0,2520.7,3.2078]
[1724895292508,3.43,2521.0,2520.7,44.40441]
[1724895292709,0.7515,2521.0,2520.7,44.40441]
[1724895293909,0.7515,2521.0,2520.9,0.39658]
[1724895294207,3.43,2521.5,2521.0,0.39655]
[1724895294413,0.3789,2521.3,2521.0,0.39655]
[1724895295009,0.3789,2521.3,2521.1,0.39655]
[1724895295306,0.3623,2521.2,2521.1,0.39655]
[1724895296602,0.3623,2521.2,2520.9,0.39657]
[1724895296818,0.7158,2521.2,2520.9,0.39657]
[1724895297318,0.7158,2521.2,2520.8,0.3843]
[1724895297319,0.7158,2521.2,2521.0,0.39656]
[1724895299716,0.7158,2521.2,2520.9,0.39657]
[1724895301419,0.39655,2521.1,2520.7,48.1988]
[1724895301617,3.9236,2521.2,2520.7,48.1988]
[1724895301818,0.39655,2521.1,2520.7,44.0078]
[1724895302426,0.39655,2521.1,2520.6,0.00595108]
[1724895302427,3.43,2521.1,2520.6,0.00595108]
[1724895302733,0.39661,2520.7,2520.6,0.00595108]
[1724895303114,3.2078,2520.8,2520.4,3.2078]
[1724895303314,0.3967,2520.2,2520.1,3.2078]
[1724895303613,0.39673,2520.0,2519.8,40.8]
[1724895303824,0.74951,2520.1,2519.8,40.8]
[1724895304528,0.39673,2520.0,2519.8,40.8]
[1724895304716,0.39674,2519.9,2519.5,3.2078]
[1724895304924,0.39674,2519.9,2519.5,3.6046]
[1724895305425,0.39674,2519.9,2519.6,40.8]
[1724895305726,0.39675,2519.9,2519.6,40.8]
[1724895306024,0.39673,2520.0,2519.6,41.19678]
[1724895306422,3.7828,2520.1,2520.0,0.39672]
[1724895306423,0.3528,2520.1,2520.0,0.39672]
[1724895306617,0.3528,2520.1,2519.8,0.39675]
[1724895307329,0.3755,2520.0,2519.8,0.39675]
[1724895308423,0.3755,2520.0,2519.7,0.3546]
[1724895308424,0.3528,2520.1,2520.0,0.39672]
[1724895309227,0.00595108,2520.2,2520.1,0.39671]
[1724895309617,0.00595108,2520.2,2520.1,7.57251]
[1724895310028,0.00595108,2520.2,2520.1,0.39671]
[1724895311129,0.00595108,2520.2,2520.0,0.39671]
[1724895311522,0.00595108,2520.2,2520.1,0.39671]
[1724895313523,0.00595108,2520.2,2520.1,4.36471]
[1724895315038,3.8066,2520.9,2520.8,0.3966]
[1724895315039,0.3766,2520.9,2520.8,0.3966]
[1724895315221,3.2078,2521.3,2520.5,3.2078]
[1724895315428,3.5858,2521.3,2521.0,0.39656]
[1724895316235,3.5858,2521.3,2520.9,0.00595108]
[1724895316236,3.98232,2521.3,2520.9,0.00595108]
[1724895316535,3.98232,2521.3,2521.0,0.39656]
[1724895316723,3.5858,2521.3,2521.1,0.39654]
[1724895316923,3.2078,2521.3,2521.2,0.39653]
[1724895317525,0.37785108,2521.4,2521.3,0.39652]
[1724895318139,0.00595108,2521.4,2521.3,0.39652]
[1724895319230,0.00595108,2521.4,2521.2,0.39653]
[1724895319436,0.00595108,2521.4,2521.1,0.39654]
[1724895319747,0.00595108,2521.4,2520.9,0.00595108]
[1724895319748,3.83246108,2521.4,2520.9,0.40252108]
[1724895320236,0.3824,2521.3,2520.9,0.40252108]
[1724895320428,0.3824,2521.3,2521.0,0.39656]
[1724895321132,0.3824,2521.3,2520.9,0.00595108]
[1724895321133,0.39653,2521.2,2520.9,0.00595108]
[1724895321333,0.3847,2521.2,2520.9,0.00595108]
[1724895321532,3.2078,2521.1,2520.9,0.00595108]
[1724895322337,3.60435,2521.1,2520.9,0.00595108]
[1724895322537,3.2078,2521.1,2520.9,0.00595108]
[1724895322845,3.2078,2521.1,2520.9,0.40252108]
[1724895323337,3.2078,2521.1,2521.0,0.39656]
[1724895323647,0.3847,2521.2,2521.1,0.39655]
[1724895323940,0.00595108,2521.4,2521.3,0.39652]
[1724895324343,0.00595108,2521.4,2521.2,0.39652]
[1724895324726,0.00595108,2521.4,2521.3,0.39652]
[1724895329044,0.00595108,2521.4,2521.1,3.2078]
[1724895329045,0.00595108,2521.4,2521.2,0.39652]
[1724895329452,7.3964,2521.3,2520.9,0.00595108]
[1724895329634,1.15523,2521.2,2520.9,0.40252108]
[1724895329833,3.2078,2521.1,2520.9,0.00595108]
[1724895330039,3.82656,2521.0,2520.9,0.00595108]
[1724895330650,3.60436,2521.1,2520.9,0.00595108]
[1724895330848,0.39656,2521.0,2520.9,0.00595108]
[1724895331250,13.79296,2521.0,2520.9,0.00595108]
[1724895331642,7.79296,2521.0,2520.9,0.00595108]
[1724895332039,13.79296,2521.0,2520.9,0.00595108]
[1724895333243,7.79296,2521.0,2520.9,0.00595108]
[1724895333434,13.79296,2521.0,2520.9,0.00595108]
[1724895337842,14.78438,2521.0,2520.9,0.00595108]
[1724895338843,13.79296,2521.0,2520.9,0.00595108]
[1724895339853,7.79296,2521.0,2520.9,0.00595108]
[1724895341153,3.43,2521.0,2520.9,0.00595108]
[1724895341742,3.43,2521.0,2520.9,0.40253108]
[1724895342453,3.43,2521.0,2520.9,0.00595108]
[1724895343039,3.2078,2521.1,2521.0,0.39656]
[1724895343246,0.7587,2521.2,2520.9,0.40252108]
[1724895343645,1.15524,2521.2,2520.9,0.00595108]
[1724895343851,3.2078,2521.1,2520.9,0.00595108]
[1724895344047,0.39656,2521.0,2520.9,0.00595108]
[1724895344655,7.79296,2521.0,2520.9,0.00595108]
[1724895346442,3.2078,2521.1,2520.9,0.40253108]
[1724895347348,3.2078,2521.1,2521.0,0.39656]
[1724895347562,3.21375108,2521.4,2521.3,0.39652]
[1724895347745,0.00595108,2521.4,2521.3,0.39652]
[1724895347944,0.00595108,2521.4,2521.3,4.36292]
[1724895348255,0.00595108,2521.4,2521.3,45.16292]
[1724895351242,3.43,2522.1,2521.8,0.39643]
[1724895351448,3.43,2522.1,2521.9,0.74782]
[1724895351850,3.2078,2522.3,2521.9,0.3514]
[1724895352051,3.2078,2522.3,2522.0,0.3964]
[1724895352359,3.43,2522.4,2521.9,0.3514]
[1724895352360,3.43595108,2522.4,2521.9,0.3514]
[1724895352653,0.00595108,2522.4,2522.2,0.39637]
[1724895353846,0.00595108,2522.4,2522.3,0.39636]
[1724895354250,0.00595108,2522.4,2522.3,4.36116]
[1724895355962,0.00595108,2522.4,2522.3,3.9648]
[1724895356159,0.00595108,2522.4,2522.3,4.36116]
[1724895356455,0.00595108,2522.4,2522.3,3.9648]
[1724895357250,0.00595108,2522.4,2522.3,4.36116]
[1724895359858,0.00595108,2522.4,2522.3,10.36116]
[1724895360368,0.00595108,2522.4,2522.3,4.36116]
[1724895361067,0.00595108,2522.4,2522.3,45.16116]
[1724895361369,0.00595108,2522.4,2522.3,4.36116]
[1724895361764,0.00595108,2522.4,2522.3,3.9648]
[1724895362868,0.00595108,2522.4,2522.2,0.39637]
[1724895363072,0.00595108,2522.4,2522.3,0.39636]
[1724895363454,0.00595108,2522.4,2522.3,4.36116]
[1724895363862,0.00595108,2522.4,2522.3,10.36116]
[1724895364075,6.6378,2523.3,2522.9,0.39626]
[1724895364364,6.6378,2523.3,2523.0,0.39625]
[1724895364672,3.604,2523.3,2523.0,0.39625]
[1724895364971,3.2078,2523.3,2523.0,0.39625]
[1724895365160,3.2078,2523.3,2523.2,0.39622]
[1724895365361,0.00595108,2523.4,2523.3,0.3962]
[1724895365571,0.00595108,2523.4,2523.3,7.5672]
[1724895365867,0.00595108,2523.4,2523.3,54.3672]
[1724895366256,0.00595108,2523.4,2523.3,45.1594]
[1724895367261,0.00595108,2523.4,2523.3,45.9208]
[1724895367460,0.00595108,2523.4,2523.3,49.1286]
[1724895368176,0.00595108,2523.4,2523.3,55.1286]
[1724895371977,0.00595108,2523.4,2523.3,48.7512]
[1724895372173,0.00595108,2523.4,2523.3,54.7512]
[1724895373876,0.00595108,2523.4,2523.3,48.7512]
[1724895374676,0.00595108,2523.4,2523.3,54.7512]
[1724895374872,0.00595108,2523.4,2523.3,55.74171]
[1724895375670,3.40969807,2524.5,2523.3,55.74171]
[1724895375671,3.2078,2524.5,2524.3,0.39604]
[1724895375881,3.2078,2524.5,2524.4,0.39603]
[1724895376679,0.7385,2524.6,2524.5,0.39601]
[1724895376881,3.9463,2524.6,2524.2,0.00595108]
[1724895377363,0.39604,2524.4,2524.2,0.00595108]
[1724895377968,3.9463,2524.6,2524.2,0.00595108]
[1724895378168,0.39602,2524.5,2524.2,0.40200108]
[1724895378379,4.3423,2524.6,2524.2,0.00595108]
[1724895379080,0.39602,2524.5,2524.2,0.00595108]
[1724895379975,0.39603,2524.4,2524.2,0.00595108]
[1724895380181,0.39602,2524.5,2524.2,0.00595108]
[1724895380567,4.34231,2524.6,2524.2,0.40201108]
[1724895380773,0.39603,2524.4,2524.2,0.00595108]
[1724895380970,3.9463,2524.6,2524.2,0.00595108]
[1724895380971,0.39605,2524.3,2524.2,0.00595108]
[1724895381172,3.60385,2524.3,2524.2,0.00595108]
[1724895381371,7.56545,2524.3,2524.2,0.00595108]
[1724895381677,3.60385,2524.3,2524.2,0.00595108]
[1724895382368,0.39605,2524.3,2524.2,0.00595108]
[1724895382573,7.3763,2524.6,2524.3,0.39604]
[1724895382574,3.9463,2524.6,2524.3,0.39604]
[1724895382774,4.34231,2524.6,2524.2,0.40200108]
[1724895383079,4.34231,2524.6,2524.2,0.40201108]
[1724895383383,4.34231,2524.6,2524.3,0.39604]
[1724895383578,0.7385,2524.6,2524.3,0.39604]
[1724895384176,1.1345,2524.6,2524.3,0.39604]
[1724895384486,0.39601,2524.5,2524.2,0.40200108]
[1724895384669,0.39603,2524.4,2524.2,0.00595108]
[1724895385381,0.39602,2524.5,2524.2,0.40201108]
[1724895385578,3.60385,2524.3,2524.2,0.00595108]
[1724895386287,3.2078,2524.3,2524.2,0.40201108]
[1724895386583,0.39602,2524.5,2524.2,0.40201108]
[1724895386777,3.9463,2524.6,2524.2,0.00595108]
[1724895386979,3.2078,2524.3,2524.2,0.00595108]
[1724895387785,3.60385,2524.3,2524.2,0.00595108]
[1724895387985,3.96355,2524.3,2524.2,0.00595108]
[1724895389085,3.2078,2524.3,2524.2,0.00595108]
[1724895390783,3.60385,2524.3,2524.2,0.00595108]
[1724895391182,7.56545,2524.3,2524.2,0.00595108]
[1724895391385,14.55557,2524.3,2524.2,0.00595108]
[1724895391589,8.55557,2524.3,2524.2,0.00595108]
[1724895391889,0.39612,2523.9,2523.6,4.58715]
[1724895392085,0.3651,2523.8,2523.5,3.43]
[1724895392286,0.3651,2523.8,2523.6,0.39614]
[1724895392485,3.60391,2523.9,2523.7,0.39614]
[1724895392486,3.2078,2523.9,2523.7,0.39614]
[1724895393193,0.3961,2524.0,2523.7,0.39614]
[1724895393488,3.5729,2524.2,2523.5,3.43595108]
[1724895393693,3.5729,2524.2,2523.7,3.43]
[1724895393887,3.5729,2524.2,2524.1,0.39608]
[1724895394701,0.3651,2524.2,2524.1,0.39608]
[1724895396291,0.3651,2524.2,2524.0,0.39609]
[1724895396597,0.3651,2524.2,2523.8,1.0802]
[1724895396598,0.39608,2524.1,2523.8,0.39612]
[1724895397995,3.96897,2524.2,2523.9,0.39611]
[1724895398693,0.39608,2524.1,2523.8,0.39611]
[1724895399400,0.3961,2524.0,2523.7,0.39613]
[1724895399590,0.3961,2524.0,2523.7,0.39612]
[1724895399790,0.77658,2524.1,2523.5,3.43595108]
[1724895400094,0.77658,2524.1,2523.8,0.39612]
[1724895400490,0.39609,2524.0,2523.7,0.39613]
[1724895400687,3.2078,2523.9,2523.5,0.00595108]
[1724895401184,3.60392,2523.9,2523.6,0.39615]
[1724895401793,0.39613,2523.8,2523.5,0.40212108]
[1724895402004,0.3561,2523.7,2523.5,0.40212108]
[1724895402193,0.7199,2523.7,2523.5,0.40212108]
[1724895402894,0.7199,2523.7,2523.6,0.39616]
[1724895403895,0.7199,2523.7,2523.5,0.00595108]
[1724895404200,3.60396,2523.6,2523.5,0.00595108]
[1724895404502,3.2078,2523.6,2523.5,0.00595108]
[1724895404894,3.2078,2523.6,2523.5,0.40212108]
[1724895405901,3.2078,2523.6,2523.5,0.00595108]
[1724895406603,3.2078,2523.6,2523.5,0.40212108]
[1724895408103,3.2078,2523.6,2523.5,0.00595108]
[1724895408812,0.39612,2523.9,2523.6,0.39615]
[1724895409001,0.39613,2523.8,2523.6,0.39615]
[1724895409202,0.39612,2523.9,2523.6,0.39615]
[1724895409523,0.39612,2523.9,2523.7,0.39614]
[1724895409695,3.2078,2524.0,2523.5,3.79185108]
[1724895409897,3.9632,2524.3,2523.8,3.43]
[1724895410097,0.7554,2524.3,2524.2,0.39606]
[1724895410312,3.35440479,2524.7,2524.2,7.3916]
[1724895410499,3.35440479,2524.7,2524.6,0.396]
[1724895410700,3.21375108,2524.7,2524.6,0.396]
[1724895410906,3.21375108,2524.7,2524.6,0.3796]
[1724895413698,3.21375108,2524.7,2524.0,4.191]
[1724895413699,0.39601,2524.6,2524.1,0.39607]
[1724895413903,3.21375108,2524.7,2524.1,0.39607]
[1724895414103,3.2078,2524.4,2524.0,8.01709]
[1724895414305,3.60383,2524.4,2524.1,40.8]
[1724895414509,0.75255,2524.3,2523.9,1.1225]
[1724895414710,0.3565,2524.3,2523.6,3.43]
[1724895414910,3.60389,2524.1,2523.6,3.82615]
[1724895415210,3.60389,2524.1,2523.6,44.62615]
[1724895415512,3.60389,2524.1,2523.7,0.39613]
[1724895415513,3.2078,2524.1,2523.7,0.39613]
[1724895416007,3.60388,2524.1,2523.7,0.39613]
[1724895416210,3.60388,2524.1,2523.6,44.62615]
[1724895416517,3.60388,2524.1,2523.6,44.23]
[1724895416518,3.2078,2524.1,2523.6,44.23]
[1724895416716,3.2078,2523.8,2523.6,40.8]
[1724895416909,0.381,2523.7,2523.5,0.40211108]
[1724895417410,0.381,2523.7,2523.6,40.8]
[1724895419613,4.3434,2523.7,2523.5,0.00595108]
[1724895419820,0.381,2523.7,2523.5,0.00595108]
[1724895420009,0.381,2523.7,2523.5,40.80595108]
[1724895420715,3.60393,2523.8,2523.5,40.80595108]
[1724895420716,3.2078,2523.8,2523.6,0.39615]
[1724895420915,0.02311904,2523.7,2523.5,41.20211108]
[1724895421114,3.2078,2523.8,2523.5,41.20211108]
[1724895421521,0.02311883,2523.7,2523.5,41.20211108]
[1724895421713,0.02311883,2523.7,2523.6,0.39616]
[1724895421916,3.2078,2523.8,2523.7,0.39614]
[1724895422111,3.23091557,2523.8,2523.6,0.39615]
[1724895422332,3.2078,2523.8,2523.6,0.39615]
[1724895422621,3.2078,2523.8,2523.7,0.39614]
[1724895423015,3.23090978,2523.8,2523.7,0.39614]
[1724895423210,0.3736,2524.0,2523.8,0.39612]
[1724895423406,0.02311004,2523.9,2523.8,0.39612]
[1724895423621,3.23091004,2523.9,2523.7,0.39613]
[1724895423922,3.2078,2523.9,2523.7,0.39613]
[1724895424221,3.2078,2523.9,2523.8,0.39612]
[1724895424416,3.2309078,2523.9,2523.8,0.39612]
[1724895425014,3.2309078,2523.9,2523.8,13.78852]
[1724895425218,3.2309078,2523.9,2523.8,7.78852]
[1724895425219,3.2078,2523.9,2523.8,7.78852]
[1724895426619,3.2078,2524.8,2523.8,13.3924]
[1724895426918,3.2078,2525.1,2524.6,3.826]
[1724895427112,3.60372,2525.1,2524.6,3.826]
[1724895427311,3.60373,2525.1,2524.6,44.626]
[1724895429818,3.2078,2525.1,2524.6,44.626]
[1724895430815,0.7158,2525.3,2524.6,48.5868]
[1724895431121,0.7158,2525.3,2524.6,53.14]
[1724895431322,0.7158,2525.3,2524.6,59.14]
[1724895432430,1.11169,2525.3,2524.6,59.14]
[1724895432913,3.9236,2525.3,2524.6,52.15]
[1724895433109,3.9236,2525.3,2524.6,51.7946]
[1724895433312,0.39593,2525.1,2524.6,51.7946]
[1724895433515,0.39591,2525.2,2524.6,51.7946]
[1724895433721,0.39592,2525.1,2524.6,51.7946]
[1724895434124,0.39592,2525.1,2524.6,48.5868]
[1724895434520,3.9236,2525.3,2524.6,48.5868]
[1724895434722,0.39593,2525.1,2524.6,48.5868]
[1724895435819,3.9236,2525.3,2524.6,48.5868]
[1724895435820,0.39591,2525.2,2524.6,48.5868]
[1724895436011,3.9236,2525.3,2524.6,48.5868]
[1724895436230,3.9236,2525.3,2524.6,55.5768]
[1724895436428,3.2078,2525.3,2524.6,55.5768]
[1724895436917,3.60369,2525.3,2524.6,55.5768]
[1724895437929,3.2078,2525.3,2524.6,55.5768]
[1724895438114,3.6037,2525.3,2524.6,55.5768]
[1724895438313,0.39593,2525.1,2524.6,48.5868]
[1724895438520,0.3738,2525.0,2524.6,48.5868]
[1724895439420,3.2078,2525.3,2524.6,54.5868]
[1724895439926,0.39594,2525.0,2524.6,44.626]
[1724895440128,0.3535,2524.9,2524.4,3.43]
[1724895440332,0.3535,2524.9,2524.4,3.82602]
[1724895440333,0.40194108,2524.7,2524.4,3.82602]
[1724895440719,0.40194108,2524.7,2524.5,40.8]
[1724895441228,0.39604,2524.4,2524.2,7.3988]
[1724895441430,0.99012,2524.3,2523.8,4.191]
[1724895441726,0.99012,2524.3,2523.6,6.6378]
[1724895441727,3.2078,2524.1,2523.6,6.6378]
[1724895442030,3.2078,2524.1,2523.9,0.39611]
[1724895442425,0.7203,2524.3,2523.9,3.43]
[1724895442626,0.357,2524.3,2524.1,0.39607]
[1724895442821,0.357,2524.3,2524.2,0.39606]
[1724895444523,0.357,2524.3,2524.1,0.39607]
[1724895445828,0.357,2524.3,2524.2,0.39606]
[1724895446332,4.3186,2524.3,2524.2,0.39606]
[1724895447036,0.357,2524.3,2524.2,0.39606]
[1724895447419,0.357,2524.3,2523.9,3.43]
[1724895447420,0.357,2524.3,2524.1,0.39607]
[1724895448834,0.357,2524.3,2524.2,0.39606]
[1724895449133,0.357,2524.3,2524.1,0.39607]
[1724895450328,0.357,2524.3,2524.2,41.19606]
[1724895450635,0.357,2524.3,2524.1,0.39607]
[1724895450835,0.39607,2524.2,2523.9,3.8261]
[1724895452324,0.39608,2524.1,2523.9,3.43]
[1724895452534,0.3961,2524.0,2523.8,0.39612]
[1724895455433,0.39609,2524.1,2523.9,0.39611]
[1724895455633,3.5759,2524.2,2523.7,44.23]
[1724895455935,3.97196,2524.2,2524.0,0.39608]
[1724895456340,3.5759,2524.2,2524.1,0.39608]
[1724895456843,3.5759,2524.2,2524.0,0.39608]
[1724895457139,3.5759,2524.2,2524.1,0.39608]
[1724895459736,0.3681,2524.2,2524.1,0.39608]
[1724895462737,0.76416,2524.2,2524.0,0.39608]
[1724895463039,0.76416,2524.2,2523.9,3.8261]
[1724895463040,0.39609,2524.1,2523.9,3.8261]
[1724895463243,0.39609,2524.1,2523.9,0.3961]
[1724895464044,4.34888,2524.2,2524.0,0.39609]
[1724895464342,0.39608,2524.1,2523.9,0.3961]
[1724895464540,4.34887,2524.2,2524.0,0.39609]
[1724895464928,0.745,2524.2,2524.1,0.39608]
[1724895465243,0.3681,2524.2,2524.1,0.39608]
[1724895465443,4.3297,2524.2,2524.1,0.39608]
[1724895465742,0.3681,2524.2,2524.1,0.39608]
[1724895466245,0.357,2524.3,2524.1,3.43]
[1724895466448,0.3769,2524.6,2524.1,3.43]
[1724895466449,0.375,2524.6,2524.1,3.43]
[1724895466748,1.156,2524.6,2524.3,0.39603]
[1724895467047,3.60382,2524.5,2524.3,0.39603]
[1724895467241,3.2078,2524.5,2524.3,0.39603]
[1724895467745,3.2078,2524.5,2524.4,0.39603]
[1724895467944,0.76,2524.6,2524.5,0.39601]
[1724895468147,0.76,2524.6,2524.2,0.355]
[1724895468148,0.00595108,2524.7,2524.6,0.396]
[1724895468752,3.96675108,2524.7,2524.6,0.396]
[1724895468943,0.00595108,2524.7,2524.6,0.396]
[1724895470943,0.00595108,2524.7,2524.4,0.39602]
[1724895470944,0.40194108,2524.7,2524.4,0.39602]
[1724895471342,0.00595108,2524.7,2524.4,0.39602]
[1724895471542,0.00595108,2524.7,2524.5,0.39601]
[1724895473049,0.00595108,2524.7,2524.6,0.396]
[1724895473453,0.00595108,2524.7,2524.6,4.3568]
[1724895474856,0.00595108,2524.7,2524.6,45.1568]
[1724895475149,0.00595108,2524.7,2524.6,41.196]
[1724895475355,0.00595108,2524.7,2524.6,45.1568]
[1724895475554,0.00595108,2524.7,2524.3,3.7979]
[1724895475750,0.00595108,2524.7,2524.6,0.396]
[1724895476054,0.00595108,2524.7,2524.6,41.196]
[1724895476256,0.00595108,2524.7,2524.6,0.396]
[1724895476456,4.36274108,2524.7,2524.4,0.39602]
[1724895476649,4.36274108,2524.7,2524.5,40.8]
[1724895476650,0.40194108,2524.7,2524.5,40.8]
[1724895476861,0.3773,2524.6,2524.5,40.8]
[1724895477048,0.3773,2524.6,2524.5,41.19601]
[1724895479046,0.00595108,2524.7,2524.6,0.396]
[1724895479960,0.00595108,2524.7,2524.6,0.7625]
[1724895480753,0.00595108,2524.7,2524.6,0.396]
[1724895481757,0.00595108,2524.7,2524.5,41.19601]
[1724895482252,0.40193108,2524.7,2524.5,41.19601]
[1724895483061,3.96675108,2524.7,2524.2,5.2975]
[1724895483359,0.39602,2524.5,2524.2,1.50255]
[1724895483658,0.00595108,2524.7,2524.3,41.19604]
[1724895483860,0.39602,2524.5,2524.3,41.19604]
[1724895484059,0.39601,2524.6,2524.3,41.19604]
[1724895484363,0.3728,2524.5,2524.4,0.39603]
[1724895484576,0.7326,2524.5,2524.3,41.19604]
[1724895484862,0.7326,2524.5,2522.7,10.0321875]
[1724895484863,10.5994,2524.4,2523.5,1.04334013]
[1724895485159,0.39612,2523.8,2523.5,41.91861108]
[1724895485561,0.3598,2523.8,2523.5,41.16955108]
[1724895485754,3.60396,2523.6,2523.5,41.16955108]
[1724895486150,3.60396,2523.6,2523.5,40.80595108]
[1724895486354,3.60396,2523.6,2523.5,0.00595108]
[1724895486748,4.59436,2523.6,2523.5,0.00595108]
[1724895486961,7.56636,2523.6,2523.5,0.00595108]
[1724895487461,7.56636,2523.6,2522.1,3.2078]
[1724895487462,0.99056,2523.2,2522.1,3.2078]
[1724895487760,3.2078,2523.0,2522.5,3.8049]
[1724895488061,3.2078,2523.0,2522.9,0.39627]
[1724895488253,3.2078,2523.3,2523.0,0.39624]
[1724895488449,0.00595108,2523.4,2523.0,3.2078]
[1724895488653,0.00595108,2523.4,2523.2,0.39622]
[1724895489467,0.00595108,2523.4,2523.2,0.39621]
[1724895489955,0.00595108,2523.4,2523.3,4.3594]
[1724895490164,0.00595108,2523.4,2523.1,4.20223]
[1724895490367,3.2078,2523.3,2523.1,0.376]
[1724895490657,3.2078,2523.3,2523.2,40.8]
[1724895491164,3.604,2523.3,2523.2,40.8]
[1724895491361,7.5672,2523.3,2523.2,40.8]
[1724895491562,7.9278,2523.3,2523.2,40.8]
[1724895491763,7.5316,2523.3,2523.2,40.8]
[1724895492363,7.92781,2523.3,2523.1,0.376]
[1724895492564,3.96461,2523.3,2523.1,0.376]
[1724895492763,3.96461,2523.3,2523.1,41.176]
[1724895493169,3.5684,2523.3,2523.1,41.176]
[1724895493957,3.9646,2523.3,2523.1,41.176]
[1724895494660,3.5684,2523.3,2523.1,41.176]
[1724895495763,3.96461,2523.3,2523.1,41.176]
[1724895496472,3.5684,2523.3,2523.1,41.176]
[1724895496766,0.00595108,2523.4,2523.3,0.3962]
[1724895499074,0.00595108,2523.4,2523.3,4.3594]
[1724895499476,0.00595108,2523.4,2523.3,0.3962]
[1724895501673,0.00595108,2523.4,2523.3,4.3594]
[1724895503069,3.2078,2524.0,2523.9,0.39611]
[1724895503276,3.2078,2524.0,2523.8,0.39612]
[1724895503479,3.2078,2524.0,2523.9,0.7227]
[1724895504267,3.43595108,2524.2,2523.9,0.7227]
[1724895504467,3.43595108,2524.2,2524.1,0.39608]
[1724895504671,3.43595108,2524.2,2523.9,0.7227]
[1724895504883,3.43595108,2524.2,2524.1,0.39608]
[1724895504884,0.00595108,2524.2,2524.1,0.39608]
[1724895505373,0.00595108,2524.2,2524.1,45.15768]
[1724895508079,0.00595108,2524.2,2524.1,52.14788]
[1724895508285,3.2078,2524.9,2524.8,0.39597]
[1724895508479,3.8122,2525.2,2525.0,0.39594]
[1724895508669,3.8122,2525.2,2524.9,0.39595]
[1724895508876,4.20811,2525.2,2524.9,0.39595]
[1724895509082,4.20811,2525.2,2524.8,0.39596]
[1724895509578,4.20811,2525.2,2524.7,0.00595108]
[1724895509777,3.8122,2525.2,2524.9,0.39594]
[1724895510182,4.20811,2525.2,2524.8,0.39596]
[1724895510490,3.8122,2525.2,2524.9,0.39594]
[1724895510981,0.40185108,2525.3,2525.2,0.3959]
[1724895510982,0.00595108,2525.3,2525.2,0.3959]
[1724895512082,0.00595108,2525.3,2525.2,4.3559]
[1724895512974,0.00595108,2525.3,2525.2,45.1559]
[1724895516188,0.00595108,2525.3,2525.2,51.1559]
[1724895518085,0.00595108,2525.3,2525.2,52.14567]
[1724895518483,0.00595108,2525.3,2525.2,55.57567]
[1724895518687,3.43,2526.2,2526.0,0.39578]
[1724895519085,3.2078,2526.3,2526.0,0.39578]
[1724895519277,3.60354,2526.3,2526.0,0.39578]
[1724895519480,3.60354,2526.3,2525.6,40.8]
[1724895519481,3.43,2526.2,2525.6,40.8]
[1724895519779,3.2078,2526.0,2525.8,0.3958]
[1724895520287,0.3654,2525.9,2525.8,0.3958]
[1724895520581,3.2078,2526.0,2525.9,0.39579]
[1724895520777,3.2078,2526.0,2525.9,4.35499]
[1724895520982,0.00593918,2526.2,2526.1,0.39576]
[1724895521282,0.00593918,2526.2,2526.0,0.76787]
[1724895521479,0.00593918,2526.2,2526.1,0.39576]
[1724895522079,0.00593918,2526.2,2526.0,0.76787]
[1724895522585,0.00593918,2526.2,2526.1,0.39576]
[1724895522982,0.00593918,2526.2,2526.0,0.76787]
[1724895523180,0.00593918,2526.2,2526.0,0.39577]
[1724895523383,0.40168918,2526.2,2525.9,0.39579]
[1724895523983,0.40168918,2526.2,2525.8,0.3958]
[1724895523984,0.39577,2526.1,2525.8,0.3958]
[1724895524983,0.40169918,2526.2,2525.9,0.39579]
[1724895526081,0.39577,2526.1,2525.8,0.3958]
[1724895526489,0.40169918,2526.2,2525.9,0.39579]
[1724895526692,0.39577,2526.1,2525.8,0.3958]
[1724895526893,0.39578,2526.0,2525.7,0.39582]
[1724895527089,0.356,2525.9,2525.8,0.39581]
[1724895528091,0.356,2525.9,2525.7,0.39582]
[1724895528394,0.39577,2526.1,2525.8,0.39581]
[1724895528593,0.356,2525.9,2525.8,0.39581]
[1724895529990,0.356,2525.9,2525.6,44.0078]
[1724895529991,0.356,2525.9,2525.7,0.39582]
[1724895532304,0.356,2525.9,2525.6,44.40363]
[1724895532488,0.7449,2525.9,2525.6,44.40363]
[1724895532688,1.14071,2525.9,2525.6,44.40363]
[1724895532894,0.39577,2526.1,2525.6,44.0078]
[1724895533095,0.39576,2526.1,2525.9,0.39579]
[1724895533296,0.76728918,2526.2,2525.9,0.39579]
[1724895533490,0.76728918,2526.2,2525.6,44.0078]
[1724895533693,0.76728918,2526.2,2525.8,0.3958]
[1724895533694,0.39576,2526.1,2525.8,0.3958]
[1724895533888,0.3958,2525.9,2525.6,40.8]
[1724895534089,0.3958,2525.9,2525.6,41.19583]
[1724895534891,0.3958,2525.9,2525.7,0.39583]
[1724895535390,3.2078,2526.0,2525.6,40.8]
[1724895535585,3.2078,2526.0,2525.3,10.288]
[1724895535586,3.60363,2525.7,2525.2,4.191]
[1724895535787,3.60363,2525.7,2525.6,0.39584]
[1724895535788,3.2078,2525.7,2525.6,0.39584]
[1724895536003,3.2078,2525.7,2525.6,41.19584]